[Event "Titled Tuesday Blitz May 16 Early 2023"]
[White "Goncalves, Davi Sulzbacher"]
[Black "Nitish Belurkar"]
[WhiteFideId "2154510"]
[BlackFideId "5084768"]
[WhiteElo "2182"]
[BlackElo "2352"]
[Result "0-1"]
[Round "10"]
[TimeControl "180+2"]
[Date "2023.05.16"]
[WhiteClock "0:00:00"]
[BlackClock "0:01:45"]

1. Nf3 {[%clk 0:03:00]}  Nf6 {[%clk 0:02:58]} 2. d4 {[%clk 0:03:00]}  g6 {[%clk 0:02:59]} 3. c4 {[%clk 0:03:01]}  Bg7 {[%clk 0:03:00]} 4. Nc3 {[%clk 0:03:01]}  d6 {[%clk 0:03:00]} 5. e4 {[%clk 0:03:01]}  O-O {[%clk 0:03:01]} 6. Be2 {[%clk 0:03:01]}  c5 {[%clk 0:03:01]} 7. d5 {[%clk 0:03:01]}  e6 {[%clk 0:02:59]} 8. O-O {[%clk 0:03:00]}  exd5 {[%clk 0:03:00]} 9. exd5 {[%clk 0:03:00]}  Bg4 {[%clk 0:03:00]} 10. Re1 {[%clk 0:02:59]}  Bxf3 {[%clk 0:02:57]} 11. Bxf3 {[%clk 0:02:58]}  a6 {[%clk 0:02:56]} 12. Bf4 {[%clk 0:02:58]}  Qc7 {[%clk 0:02:55]} 13. g4 {[%clk 0:02:50]}  Nfd7 {[%clk 0:02:50]} 14. Re7 {[%clk 0:02:46]}  Bf6 {[%clk 0:02:49]} 15. Re3 {[%clk 0:02:25]}  Ne5 {[%clk 0:02:49]} 16. Ne4 {[%clk 0:02:24]}  Bg7 {[%clk 0:02:46]} 17. Be2 {[%clk 0:02:19]}  Nbd7 {[%clk 0:02:44]} 18. Rc1 {[%clk 0:02:11]}  Rae8 {[%clk 0:02:42]} 19. Bg3 {[%clk 0:01:27]}  f5 {[%clk 0:02:41]} 20. Ng5 {[%clk 0:01:18]}  f4 {[%clk 0:02:41]} 21. Ne6 {[%clk 0:01:17]}  Rxe6 {[%clk 0:02:40]} 22. dxe6 {[%clk 0:01:17]}  fxe3 {[%clk 0:02:31]} 23. exd7 {[%clk 0:01:15]}  exf2+ {[%clk 0:02:32]} 24. Bxf2 {[%clk 0:01:14]}  Qxd7 {[%clk 0:02:33]} 25. Qd5+ {[%clk 0:01:11]}  Kh8 {[%clk 0:02:33]} 26. Bg3 {[%clk 0:00:56]}  Nxg4 {[%clk 0:02:29]} 27. Qxd6 {[%clk 0:00:45]}  Bd4+ {[%clk 0:02:28]} 28. Kh1 {[%clk 0:00:45]}  Qxd6 {[%clk 0:02:23]} 29. Bxd6 {[%clk 0:00:45]}  Nf2+ {[%clk 0:02:24]} 30. Kg2 {[%clk 0:00:44]}  Rf6 {[%clk 0:02:21]} 31. Bg3 {[%clk 0:00:37]}  Ne4 {[%clk 0:02:20]} 32. b3 {[%clk 0:00:27]}  Nxg3 {[%clk 0:02:19]} 33. Kxg3 {[%clk 0:00:27]}  Rf2 {[%clk 0:02:17]} 34. Re1 {[%clk 0:00:20]}  h5 {[%clk 0:02:15]} 35. h4 {[%clk 0:00:19]}  Kg7 {[%clk 0:02:02]} 36. Bd3 {[%clk 0:00:19]}  Rxa2 {[%clk 0:02:00]} 37. Re7+ {[%clk 0:00:19]}  Kf6 {[%clk 0:01:59]} 38. Rxb7 {[%clk 0:00:19]}  Bf2+ {[%clk 0:01:50]} 39. Kf3 {[%clk 0:00:20]}  Bxh4 {[%clk 0:01:49]} 40. Rb6+ {[%clk 0:00:20]}  Ke5 {[%clk 0:01:50]} 41. Bxg6 {[%clk 0:00:19]}  Rf2+ {[%clk 0:01:47]} 42. Ke3 {[%clk 0:00:19]}  Rh2 {[%clk 0:01:47]} 43. Bf7 {[%clk 0:00:17]}  Bf2+ {[%clk 0:01:46]} 44. Kf3 {[%clk 0:00:17]}  h4 {[%clk 0:01:45]} 45. Rxa6 {[%clk 0:00:15]}  Bd4 {[%clk 0:01:44]} 46. Rh6 {[%clk 0:00:13]}  Rf2+ {[%clk 0:01:43]} 47. Kg4 {[%clk 0:00:12]}  Rf4+ {[%clk 0:01:43]} 48. Kh3 {[%clk 0:00:12]}  Rxf7 {[%clk 0:01:43]} 49. Rxh4 {[%clk 0:00:09]}  Rf3+ {[%clk 0:01:43]} 50. Kg2 {[%clk 0:00:09]}  Rxb3 {[%clk 0:01:43]} 51. Kf1 {[%clk 0:00:08]}  Rc3 {[%clk 0:01:43]} 52. Ke2 {[%clk 0:00:09]}  Rxc4 {[%clk 0:01:43]} 53. Rh5+ {[%clk 0:00:08]}  Ke4 {[%clk 0:01:43]} 54. Rh4+ {[%clk 0:00:08]}  Kd5 {[%clk 0:01:44]} 55. Kd3 {[%clk 0:00:06]}  Rc3+ {[%clk 0:01:44]} 56. Kd2 {[%clk 0:00:07]}  Kc4 {[%clk 0:01:45]} 57. Rg4 {[%clk 0:00:06]}  Rf3 {[%clk 0:01:45]} 58. Ke2 {[%clk 0:00:06]}  Rf2+ {[%clk 0:01:45]} 59. Ke1 {[%clk 0:00:07]}  Rb2 {[%clk 0:01:46]} 60. Kd1 {[%clk 0:00:08]}  Kd3 {[%clk 0:01:45]} 61. Rg3+ {[%clk 0:00:00]}  Be3 {[%clk 0:01:45]} 0-1


[Site "https://www.chess.com"]

[Event "Titled Tuesday Blitz May 16 Early 2023"]
[White "Kramnik, Vladimir"]
[Black "Fan_Of_Chucky"]
[WhiteFideId "4101588"]
[WhiteElo "2703"]
[BlackElo "2408"]
[Result "1-0"]
[Round "10"]
[TimeControl "180+2"]
[Date "2023.05.16"]
[WhiteClock "0:00:37"]
[BlackClock "0:00:00"]

1. c4 {[%clk 0:03:00]}  c5 {[%clk 0:02:47]} 2. g3 {[%clk 0:02:59]}  g6 {[%clk 0:02:44]} 3. Bg2 {[%clk 0:03:00]}  Bg7 {[%clk 0:02:45]} 4. Nc3 {[%clk 0:03:00]}  Nc6 {[%clk 0:02:44]} 5. d3 {[%clk 0:03:00]}  d6 {[%clk 0:02:43]} 6. Qd2 {[%clk 0:03:00]}  e6 {[%clk 0:02:41]} 7. b3 {[%clk 0:03:00]}  Nge7 {[%clk 0:02:39]} 8. Bb2 {[%clk 0:03:00]}  O-O {[%clk 0:02:39]} 9. h4 {[%clk 0:03:00]}  d5 {[%clk 0:02:08]} 10. h5 {[%clk 0:02:58]}  Qa5 {[%clk 0:01:57]} 11. Nf3 {[%clk 0:02:51]}  d4 {[%clk 0:01:56]} 12. Ne4 {[%clk 0:02:50]}  Qxd2+ {[%clk 0:01:57]} 13. Kxd2 {[%clk 0:02:43]}  b6 {[%clk 0:01:55]} 14. hxg6 {[%clk 0:02:42]}  hxg6 {[%clk 0:01:47]} 15. Nd6 {[%clk 0:02:22]}  Rd8 {[%clk 0:01:37]} 16. Nxc8 {[%clk 0:02:18]}  Raxc8 {[%clk 0:01:38]} 17. a3 {[%clk 0:02:11]}  a5 {[%clk 0:01:34]} 18. Ng5 {[%clk 0:02:07]}  Bf6 {[%clk 0:01:27]} 19. Ne4 {[%clk 0:02:04]}  Bg7 {[%clk 0:01:18]} 20. Kc2 {[%clk 0:02:04]}  f6 {[%clk 0:01:17]} 21. g4 {[%clk 0:01:55]}  Kf7 {[%clk 0:01:16]} 22. f4 {[%clk 0:01:53]}  Rc7 {[%clk 0:00:39]} 23. Rh7 {[%clk 0:01:52]}  Rh8 {[%clk 0:00:32]} 24. Rxh8 {[%clk 0:01:52]}  Bxh8 {[%clk 0:00:33]} 25. Rh1 {[%clk 0:01:50]}  Bg7 {[%clk 0:00:23]} 26. Nd6+ {[%clk 0:01:47]}  Kg8 {[%clk 0:00:20]} 27. Bc1 {[%clk 0:01:41]}  Rd7 {[%clk 0:00:19]} 28. Nb5 {[%clk 0:01:40]}  f5 {[%clk 0:00:16]} 29. Rg1 {[%clk 0:01:32]}  Kf7 {[%clk 0:00:15]} 30. Bd2 {[%clk 0:01:32]}  Na7 {[%clk 0:00:10]} 31. gxf5 {[%clk 0:01:26]}  exf5 {[%clk 0:00:08]} 32. Nxa7 {[%clk 0:01:17]}  Rxa7 {[%clk 0:00:08]} 33. Bf3 {[%clk 0:01:13]}  Bf8 {[%clk 0:00:06]} 34. Rh1 {[%clk 0:01:12]}  Kg7 {[%clk 0:00:05]} 35. e3 {[%clk 0:01:10]}  dxe3 {[%clk 0:00:03]} 36. Bxe3 {[%clk 0:01:10]}  Ng8 {[%clk 0:00:03]} 37. d4 {[%clk 0:01:02]}  Re7 {[%clk 0:00:02]} 38. Kd3 {[%clk 0:00:54]}  Rd7 {[%clk 0:00:03]} 39. Bc6 {[%clk 0:00:50]}  Rd6 {[%clk 0:00:03]} 40. d5 {[%clk 0:00:44]}  Be7 {[%clk 0:00:03]} 41. b4 {[%clk 0:00:41]}  axb4 {[%clk 0:00:03]} 42. axb4 {[%clk 0:00:41]}  Rd8 {[%clk 0:00:02]} 43. Ra1 {[%clk 0:00:40]}  Bd6 {[%clk 0:00:02]} 44. Ra6 {[%clk 0:00:37]}  Bc7 {[%clk 0:00:01]} 45. Ra7 {[%clk 0:00:37]}  Rc8 {[%clk 0:00:01]} 46. Bd7 {[%clk 0:00:37]}  Rd8 {[%clk 0:00:00]} 47. Rxc7 {[%clk 0:00:37]} 1-0


[Site "https://www.chess.com"]

[Event "Titled Tuesday Blitz May 16 Early 2023"]
[White "Vlassov, Nikolai"]
[Black "Galchenko, Matvey"]
[WhiteFideId "4103360"]
[BlackFideId "24175480"]
[WhiteElo "2324"]
[BlackElo "2423"]
[Result "0-1"]
[Round "10"]
[TimeControl "180+2"]
[Date "2023.05.16"]
[WhiteClock "0:00:00"]
[BlackClock "0:00:03"]

1. e4 {[%clk 0:03:00]}  e6 {[%clk 0:02:44]} 2. d4 {[%clk 0:03:00]}  d5 {[%clk 0:02:45]} 3. e5 {[%clk 0:03:00]}  c5 {[%clk 0:02:45]} 4. c3 {[%clk 0:03:00]}  Qb6 {[%clk 0:02:46]} 5. Nf3 {[%clk 0:03:00]}  Nc6 {[%clk 0:02:46]} 6. a3 {[%clk 0:03:00]}  Nh6 {[%clk 0:02:44]} 7. b4 {[%clk 0:03:00]}  cxd4 {[%clk 0:02:43]} 8. Bxh6 {[%clk 0:02:59]}  gxh6 {[%clk 0:02:44]} 9. cxd4 {[%clk 0:02:59]}  Bd7 {[%clk 0:02:44]} 10. Nc3 {[%clk 0:02:59]}  Nxb4 {[%clk 0:02:32]} 11. axb4 {[%clk 0:02:59]}  Bxb4 {[%clk 0:02:33]} 12. Qd3 {[%clk 0:02:58]}  Rc8 {[%clk 0:02:28]} 13. Rc1 {[%clk 0:02:57]}  Qa5 {[%clk 0:02:25]} 14. Kd2 {[%clk 0:02:57]}  Qa3 {[%clk 0:02:06]} 15. h4 {[%clk 0:02:10]}  Rxc3 {[%clk 0:01:10]} 16. Rxc3 {[%clk 0:02:10]}  Qb2+ {[%clk 0:01:10]} 17. Ke3 {[%clk 0:01:57]}  Qxc3 {[%clk 0:00:53]} 18. Qxc3 {[%clk 0:01:37]}  Bxc3 {[%clk 0:00:54]} 19. Bd3 {[%clk 0:01:36]}  Kd8 {[%clk 0:00:41]} 20. Rb1 {[%clk 0:01:32]}  Bc6 {[%clk 0:00:37]} 21. Nh2 {[%clk 0:01:21]}  h5 {[%clk 0:00:31]} 22. Be2 {[%clk 0:00:54]}  a5 {[%clk 0:00:31]} 23. Rb3 {[%clk 0:00:50]}  Bb4 {[%clk 0:00:28]} 24. Bxh5 {[%clk 0:00:50]}  Ke7 {[%clk 0:00:26]} 25. Ng4 {[%clk 0:00:43]}  Bb5 {[%clk 0:00:19]} 26. Nh6 {[%clk 0:00:37]}  Rc8 {[%clk 0:00:12]} 27. Bxf7 {[%clk 0:00:24]}  Rc2 {[%clk 0:00:12]} 28. Bg8 {[%clk 0:00:18]}  Bd2+ {[%clk 0:00:11]} 29. Kf3 {[%clk 0:00:19]}  Bxh6 {[%clk 0:00:12]} 30. Rxb5 {[%clk 0:00:18]}  Rc3+ {[%clk 0:00:04]} 31. Kg4 {[%clk 0:00:17]}  Rc7 {[%clk 0:00:04]} 32. Rxa5 {[%clk 0:00:16]}  Bd2 {[%clk 0:00:04]} 33. Rb5 {[%clk 0:00:15]}  Bc3 {[%clk 0:00:04]} 34. Rb6 {[%clk 0:00:12]}  Bxd4 {[%clk 0:00:04]} 35. Rxe6+ {[%clk 0:00:12]}  Kf8 {[%clk 0:00:03]} 36. Bxh7 {[%clk 0:00:06]}  Rxh7 {[%clk 0:00:04]} 37. Rd6 {[%clk 0:00:05]}  Bxe5 {[%clk 0:00:03]} 38. Rxd5 {[%clk 0:00:06]}  Bc7 {[%clk 0:00:03]} 39. f4 {[%clk 0:00:04]}  Rg7+ {[%clk 0:00:02]} 40. Kf3 {[%clk 0:00:04]}  Rg6 {[%clk 0:00:03]} 41. g4 {[%clk 0:00:04]}  Ra6 {[%clk 0:00:03]} 42. g5 {[%clk 0:00:03]}  Ra4 {[%clk 0:00:03]} 43. Rf5+ {[%clk 0:00:02]}  Ke7 {[%clk 0:00:03]} 44. h5 {[%clk 0:00:03]}  Ra1 {[%clk 0:00:02]} 45. h6 {[%clk 0:00:00]}  Rh1 {[%clk 0:00:03]} 0-1


[Site "https://www.chess.com"]

[Event "Titled Tuesday Blitz May 16 Early 2023"]
[White "Mekhitarian, Krikor Sevag"]
[Black "Borgaonkar Akshay"]
[WhiteFideId "2107660"]
[BlackFideId "25639110"]
[WhiteElo "2604"]
[BlackElo "2063"]
[Result "1-0"]
[Round "10"]
[TimeControl "180+2"]
[Date "2023.05.16"]
[WhiteClock "0:00:04"]
[BlackClock "0:00:00"]

1. Nf3 {[%clk 0:03:00]}  Nf6 {[%clk 0:02:59]} 2. c4 {[%clk 0:03:00]}  g6 {[%clk 0:02:58]} 3. Nc3 {[%clk 0:02:59]}  Bg7 {[%clk 0:02:58]} 4. e4 {[%clk 0:02:59]}  d6 {[%clk 0:02:58]} 5. d4 {[%clk 0:02:59]}  O-O {[%clk 0:02:59]} 6. h3 {[%clk 0:02:58]}  c5 {[%clk 0:02:56]} 7. d5 {[%clk 0:02:57]}  e6 {[%clk 0:02:55]} 8. Bd3 {[%clk 0:02:53]}  exd5 {[%clk 0:02:55]} 9. exd5 {[%clk 0:02:54]}  Re8+ {[%clk 0:02:55]} 10. Be3 {[%clk 0:02:53]}  Rxe3+ {[%clk 0:02:55]} 11. fxe3 {[%clk 0:02:54]}  Nbd7 {[%clk 0:02:49]} 12. O-O {[%clk 0:02:53]}  Qe7 {[%clk 0:02:49]} 13. Qd2 {[%clk 0:02:37]}  b6 {[%clk 0:02:48]} 14. Rf2 {[%clk 0:02:32]}  Ba6 {[%clk 0:02:41]} 15. Re1 {[%clk 0:02:20]}  Nh5 {[%clk 0:02:39]} 16. g4 {[%clk 0:02:00]}  Nhf6 {[%clk 0:02:38]} 17. b3 {[%clk 0:01:38]}  Ne5 {[%clk 0:02:32]} 18. Nxe5 {[%clk 0:01:33]}  Qxe5 {[%clk 0:02:33]} 19. Ne2 {[%clk 0:01:15]}  h5 {[%clk 0:02:30]} 20. gxh5 {[%clk 0:01:15]}  Nxh5 {[%clk 0:02:29]} 21. Ref1 {[%clk 0:01:15]}  f5 {[%clk 0:02:28]} 22. Rg2 {[%clk 0:01:14]}  Kh7 {[%clk 0:02:21]} 23. Nf4 {[%clk 0:01:09]}  Bh6 {[%clk 0:02:02]} 24. Qf2 {[%clk 0:00:49]}  Nxf4 {[%clk 0:01:40]} 25. exf4 {[%clk 0:00:49]}  Qc3 {[%clk 0:01:38]} 26. Qg3 {[%clk 0:00:48]}  Rg8 {[%clk 0:01:34]} 27. Kh2 {[%clk 0:00:45]}  Bc8 {[%clk 0:01:27]} 28. Rf3 {[%clk 0:00:44]}  Qd4 {[%clk 0:01:27]} 29. Re2 {[%clk 0:00:43]}  Rg7 {[%clk 0:01:25]} 30. Qh4 {[%clk 0:00:40]}  Bd7 {[%clk 0:01:12]} 31. Re7 {[%clk 0:00:31]}  Qb2+ {[%clk 0:01:11]} 32. Kh1 {[%clk 0:00:25]}  Qa1+ {[%clk 0:00:43]} 33. Rf1 {[%clk 0:00:23]}  Qd4 {[%clk 0:00:41]} 34. Rxg7+ {[%clk 0:00:23]}  Kxg7 {[%clk 0:00:34]} 35. Qe7+ {[%clk 0:00:20]}  Kh8 {[%clk 0:00:29]} 36. Qd8+ {[%clk 0:00:20]}  Kh7 {[%clk 0:00:29]} 37. Qxd7+ {[%clk 0:00:20]}  Bg7 {[%clk 0:00:30]} 38. Bxf5 {[%clk 0:00:14]}  gxf5 {[%clk 0:00:27]} 39. Qxf5+ {[%clk 0:00:15]}  Kh8 {[%clk 0:00:27]} 40. Qh5+ {[%clk 0:00:12]}  Kg8 {[%clk 0:00:27]} 41. Qf3 {[%clk 0:00:13]}  Bf6 {[%clk 0:00:25]} 42. Rf2 {[%clk 0:00:13]}  Qa1+ {[%clk 0:00:23]} 43. Kg2 {[%clk 0:00:13]}  Bd4 {[%clk 0:00:24]} 44. Qg4+ {[%clk 0:00:10]}  Kh8 {[%clk 0:00:23]} 45. Qh5+ {[%clk 0:00:10]}  Kg7 {[%clk 0:00:23]} 46. Qe2 {[%clk 0:00:06]}  Bxf2 {[%clk 0:00:23]} 47. Qxf2 {[%clk 0:00:07]}  Kf6 {[%clk 0:00:21]} 48. Kh2 {[%clk 0:00:06]}  Kf5 {[%clk 0:00:21]} 49. Qd2 {[%clk 0:00:04]}  Qd4 {[%clk 0:00:19]} 50. Qxd4 {[%clk 0:00:03]}  cxd4 {[%clk 0:00:19]} 51. Kg3 {[%clk 0:00:04]}  Ke4 {[%clk 0:00:20]} 52. Kf2 {[%clk 0:00:04]}  Kd3 {[%clk 0:00:08]} 53. f5 {[%clk 0:00:04]}  Kc2 {[%clk 0:00:06]} 54. f6 {[%clk 0:00:05]}  d3 {[%clk 0:00:07]} 55. f7 {[%clk 0:00:06]}  d2 {[%clk 0:00:08]} 56. f8=Q {[%clk 0:00:07]}  d1=Q {[%clk 0:00:09]} 57. Qf5+ {[%clk 0:00:04]}  Kb2 {[%clk 0:00:09]} 58. Qf3 {[%clk 0:00:05]}  Qd4+ {[%clk 0:00:08]} 59. Qe3 {[%clk 0:00:05]}  Qf6+ {[%clk 0:00:08]} 60. Kg3 {[%clk 0:00:05]}  Kxa2 {[%clk 0:00:07]} 61. h4 {[%clk 0:00:05]}  Qg6+ {[%clk 0:00:06]} 62. Kh3 {[%clk 0:00:05]}  Qf5+ {[%clk 0:00:05]} 63. Kg3 {[%clk 0:00:06]}  Qg6+ {[%clk 0:00:05]} 64. Kf2 {[%clk 0:00:06]}  Qf5+ {[%clk 0:00:05]} 65. Qf3 {[%clk 0:00:05]}  Qc2+ {[%clk 0:00:06]} 66. Kg3 {[%clk 0:00:06]}  Qg6+ {[%clk 0:00:06]} 67. Kh3 {[%clk 0:00:06]}  a5 {[%clk 0:00:03]} 68. h5 {[%clk 0:00:05]}  Qg5 {[%clk 0:00:04]} 69. Qg4 {[%clk 0:00:06]}  Qe3+ {[%clk 0:00:04]} 70. Qg3 {[%clk 0:00:05]}  Qh6 {[%clk 0:00:02]} 71. Qf3 {[%clk 0:00:04]}  Qg5 {[%clk 0:00:02]} 72. Kh2 {[%clk 0:00:04]}  Qh4+ {[%clk 0:00:02]} 73. Kg2 {[%clk 0:00:04]}  Qg5+ {[%clk 0:00:02]} 74. Kh3 {[%clk 0:00:05]}  Qh6 {[%clk 0:00:02]} 75. Kg4 {[%clk 0:00:05]}  Qg7+ {[%clk 0:00:02]} 76. Kh4 {[%clk 0:00:05]}  Qh6 {[%clk 0:00:02]} 77. Qg3 {[%clk 0:00:05]}  Qh7 {[%clk 0:00:02]} 78. Qg6 {[%clk 0:00:03]}  Qh8 {[%clk 0:00:02]} 79. h6 {[%clk 0:00:03]}  Kxb3 {[%clk 0:00:00]} 80. Qg7 {[%clk 0:00:04]} 1-0


[Site "https://www.chess.com"]

[Event "Titled Tuesday Blitz May 16 Early 2023"]
[White "Petrosyan, Manuel"]
[Black "vlajkovicS"]
[WhiteFideId "13300857"]
[WhiteElo "2576"]
[BlackElo "2635"]
[Result "0-1"]
[Round "10"]
[TimeControl "180+2"]
[Date "2023.05.16"]
[WhiteClock "0:00:00"]
[BlackClock "0:00:36"]

1. e4 {[%clk 0:02:57]}  e6 {[%clk 0:02:59]} 2. d4 {[%clk 0:02:56]}  a6 {[%clk 0:03:00]} 3. Nf3 {[%clk 0:02:49]}  b5 {[%clk 0:03:00]} 4. a4 {[%clk 0:02:44]}  b4 {[%clk 0:03:00]} 5. Bd3 {[%clk 0:02:34]}  Bb7 {[%clk 0:03:00]} 6. O-O {[%clk 0:02:35]}  Nf6 {[%clk 0:03:00]} 7. Re1 {[%clk 0:02:33]}  Be7 {[%clk 0:03:00]} 8. h3 {[%clk 0:02:31]}  d6 {[%clk 0:03:00]} 9. Bf4 {[%clk 0:02:28]}  Nbd7 {[%clk 0:03:00]} 10. Nbd2 {[%clk 0:02:28]}  c5 {[%clk 0:02:59]} 11. Nc4 {[%clk 0:02:15]}  Qc7 {[%clk 0:02:03]} 12. e5 {[%clk 0:02:01]}  dxe5 {[%clk 0:02:03]} 13. Nfxe5 {[%clk 0:01:59]}  Nxe5 {[%clk 0:02:01]} 14. Bxe5 {[%clk 0:01:48]}  Qc6 {[%clk 0:02:01]} 15. f3 {[%clk 0:01:46]}  O-O {[%clk 0:02:01]} 16. Na5 {[%clk 0:01:24]}  Qb6 {[%clk 0:02:00]} 17. Nxb7 {[%clk 0:01:25]}  Qxb7 {[%clk 0:02:01]} 18. Bxf6 {[%clk 0:00:51]}  Bxf6 {[%clk 0:02:02]} 19. Be4 {[%clk 0:00:52]}  Qc7 {[%clk 0:02:02]} 20. Bxa8 {[%clk 0:00:51]}  Bxd4+ {[%clk 0:02:03]} 21. Kh1 {[%clk 0:00:48]}  Rxa8 {[%clk 0:02:03]} 22. Rb1 {[%clk 0:00:46]}  Qg3 {[%clk 0:01:57]} 23. Qe2 {[%clk 0:00:43]}  a5 {[%clk 0:01:34]} 24. b3 {[%clk 0:00:41]}  g6 {[%clk 0:01:29]} 25. Rbd1 {[%clk 0:00:36]}  Bc3 {[%clk 0:01:29]} 26. Qe4 {[%clk 0:00:36]}  Rc8 {[%clk 0:01:16]} 27. Re2 {[%clk 0:00:33]}  c4 {[%clk 0:01:01]} 28. bxc4 {[%clk 0:00:22]}  Rc5 {[%clk 0:01:01]} 29. Qg4 {[%clk 0:00:13]}  Qc7 {[%clk 0:01:01]} 30. Qh4 {[%clk 0:00:08]}  Kg7 {[%clk 0:00:55]} 31. Re4 {[%clk 0:00:04]}  Bf6 {[%clk 0:00:51]} 32. Qf4 {[%clk 0:00:05]}  Be5 {[%clk 0:00:49]} 33. Qe3 {[%clk 0:00:04]}  Bf6 {[%clk 0:00:47]} 34. Rd7 {[%clk 0:00:03]}  Qxd7 {[%clk 0:00:45]} 35. Qxc5 {[%clk 0:00:03]}  Qd1+ {[%clk 0:00:45]} 36. Kh2 {[%clk 0:00:04]}  Qxc2 {[%clk 0:00:46]} 37. Qxa5 {[%clk 0:00:02]}  b3 {[%clk 0:00:45]} 38. Qb5 {[%clk 0:00:02]}  b2 {[%clk 0:00:45]} 39. Re1 {[%clk 0:00:02]}  Qc1 {[%clk 0:00:41]} 40. Rxc1 {[%clk 0:00:03]}  bxc1=Q {[%clk 0:00:41]} 41. a5 {[%clk 0:00:03]}  Qf4+ {[%clk 0:00:41]} 42. Kh1 {[%clk 0:00:04]}  Be5 {[%clk 0:00:40]} 43. Kg1 {[%clk 0:00:04]}  Bd4+ {[%clk 0:00:38]} 44. Kf1 {[%clk 0:00:00]}  Qd2 {[%clk 0:00:36]} 0-1


[Site "https://www.chess.com"]

[Event "Titled Tuesday Blitz May 16 Early 2023"]
[White "Spata, German"]
[Black "Mikhailovsky, Vladimir"]
[WhiteFideId "113026"]
[BlackFideId "34105414"]
[WhiteElo "2260"]
[BlackElo "2271"]
[Result "0-1"]
[Round "10"]
[TimeControl "180+2"]
[Date "2023.05.16"]
[WhiteClock "0:00:21"]
[BlackClock "0:01:21"]

1. Nf3 {[%clk 0:02:58]}  g6 {[%clk 0:02:58]} 2. e3 {[%clk 0:02:59]}  Bg7 {[%clk 0:02:58]} 3. d4 {[%clk 0:03:00]}  b6 {[%clk 0:02:58]} 4. Be2 {[%clk 0:03:00]}  Bb7 {[%clk 0:02:59]} 5. O-O {[%clk 0:03:00]}  Nf6 {[%clk 0:03:00]} 6. b3 {[%clk 0:03:01]}  O-O {[%clk 0:03:00]} 7. Bb2 {[%clk 0:03:01]}  d5 {[%clk 0:02:59]} 8. c4 {[%clk 0:03:02]}  Nbd7 {[%clk 0:02:54]} 9. Nc3 {[%clk 0:03:01]}  c5 {[%clk 0:02:53]} 10. dxc5 {[%clk 0:02:59]}  Nxc5 {[%clk 0:02:53]} 11. Nxd5 {[%clk 0:02:59]}  Nxd5 {[%clk 0:02:53]} 12. Bxg7 {[%clk 0:02:59]}  Kxg7 {[%clk 0:02:50]} 13. cxd5 {[%clk 0:02:59]}  Qxd5 {[%clk 0:02:49]} 14. Qxd5 {[%clk 0:02:55]}  Bxd5 {[%clk 0:02:50]} 15. Rfd1 {[%clk 0:02:53]}  Rfd8 {[%clk 0:02:49]} 16. Rd4 {[%clk 0:02:44]}  Ne6 {[%clk 0:02:41]} 17. Rdd1 {[%clk 0:02:39]}  Rac8 {[%clk 0:02:40]} 18. Rac1 {[%clk 0:02:25]}  Bxf3 {[%clk 0:02:38]} 19. Bxf3 {[%clk 0:02:24]}  Rxc1 {[%clk 0:02:32]} 20. Rxc1 {[%clk 0:02:24]}  Rd2 {[%clk 0:02:33]} 21. Ra1 {[%clk 0:02:12]}  Nc5 {[%clk 0:02:31]} 22. h3 {[%clk 0:01:58]}  Kf6 {[%clk 0:02:29]} 23. b4 {[%clk 0:01:44]}  Nd3 {[%clk 0:02:29]} 24. b5 {[%clk 0:01:39]}  Nxf2 {[%clk 0:02:17]} 25. a4 {[%clk 0:01:27]}  Nd3 {[%clk 0:02:10]} 26. a5 {[%clk 0:01:21]}  Rb2 {[%clk 0:02:03]} 27. axb6 {[%clk 0:01:20]}  axb6 {[%clk 0:02:04]} 28. Bc6 {[%clk 0:01:15]}  Ne5 {[%clk 0:01:59]} 29. Ra6 {[%clk 0:01:09]}  Nc4 {[%clk 0:01:59]} 30. e4 {[%clk 0:00:58]}  e6 {[%clk 0:01:59]} 31. Ra7 {[%clk 0:00:56]}  Nd6 {[%clk 0:01:54]} 32. Ra6 {[%clk 0:00:47]}  Nc4 {[%clk 0:01:49]} 33. Ra7 {[%clk 0:00:46]}  Nd6 {[%clk 0:01:25]} 34. Ra6 {[%clk 0:00:43]}  Nxb5 {[%clk 0:01:25]} 35. Rxb6 {[%clk 0:00:43]}  Rb1+ {[%clk 0:01:26]} 36. Kh2 {[%clk 0:00:43]}  Nc3 {[%clk 0:01:26]} 37. Ra6 {[%clk 0:00:33]}  Rb4 {[%clk 0:01:21]} 38. Ra7 {[%clk 0:00:31]}  Nxe4 {[%clk 0:01:21]} 39. Be8 {[%clk 0:00:27]}  Nd6 {[%clk 0:01:21]} 40. Bd7 {[%clk 0:00:21]}  Rb7 {[%clk 0:01:21]} 0-1


[Site "https://www.chess.com"]

[Event "Titled Tuesday Blitz May 16 Early 2023"]
[White "Demin, Vladimir"]
[Black "Cherniaiev, Tykhon"]
[WhiteFideId "4167457"]
[BlackFideId "14182360"]
[WhiteElo "2560"]
[BlackElo "2450"]
[Result "0-1"]
[Round "10"]
[TimeControl "180+2"]
[Date "2023.05.16"]
[WhiteClock "0:00:00"]
[BlackClock "0:00:36"]

1. d4 {[%clk 0:03:00]}  Nf6 {[%clk 0:02:59]} 2. Nc3 {[%clk 0:03:00]}  d5 {[%clk 0:02:59]} 3. Bf4 {[%clk 0:03:00]}  c5 {[%clk 0:02:59]} 4. e4 {[%clk 0:03:01]}  Nxe4 {[%clk 0:02:58]} 5. Nxe4 {[%clk 0:03:00]}  dxe4 {[%clk 0:02:58]} 6. dxc5 {[%clk 0:03:01]}  Qa5+ {[%clk 0:02:58]} 7. c3 {[%clk 0:03:01]}  Qxc5 {[%clk 0:02:58]} 8. Qa4+ {[%clk 0:03:02]}  Nc6 {[%clk 0:02:52]} 9. Qxe4 {[%clk 0:03:02]}  g6 {[%clk 0:02:42]} 10. Nf3 {[%clk 0:03:01]}  Bg7 {[%clk 0:02:35]} 11. Qe3 {[%clk 0:02:55]}  Qa5 {[%clk 0:02:23]} 12. Bh6 {[%clk 0:02:45]}  O-O {[%clk 0:02:19]} 13. Bxg7 {[%clk 0:02:45]}  Kxg7 {[%clk 0:02:20]} 14. Bc4 {[%clk 0:02:43]}  Bg4 {[%clk 0:02:15]} 15. O-O {[%clk 0:02:40]}  Rac8 {[%clk 0:02:06]} 16. Bb3 {[%clk 0:02:35]}  Rfd8 {[%clk 0:02:00]} 17. Rad1 {[%clk 0:02:23]}  Qc7 {[%clk 0:01:56]} 18. h3 {[%clk 0:02:21]}  Bxf3 {[%clk 0:01:47]} 19. Qxf3 {[%clk 0:02:22]}  e6 {[%clk 0:01:46]} 20. h4 {[%clk 0:02:07]}  h5 {[%clk 0:01:38]} 21. g3 {[%clk 0:02:03]}  Na5 {[%clk 0:01:36]} 22. Bc2 {[%clk 0:01:57]}  Nc4 {[%clk 0:01:35]} 23. Rxd8 {[%clk 0:01:16]}  Rxd8 {[%clk 0:01:32]} 24. Rd1 {[%clk 0:00:22]}  Rxd1+ {[%clk 0:01:27]} 25. Qxd1 {[%clk 0:00:23]}  Nxb2 {[%clk 0:01:24]} 26. Qd4+ {[%clk 0:00:24]}  e5 {[%clk 0:01:23]} 27. Qxa7 {[%clk 0:00:19]}  Qxc3 {[%clk 0:01:21]} 28. Bb3 {[%clk 0:00:20]}  Nd3 {[%clk 0:01:14]} 29. Qe3 {[%clk 0:00:16]}  f5 {[%clk 0:00:39]} 30. Kh2 {[%clk 0:00:09]}  Qd4 {[%clk 0:00:36]} 31. Qxd4 {[%clk 0:00:05]}  exd4 {[%clk 0:00:37]} 32. f4 {[%clk 0:00:05]}  Nc1 {[%clk 0:00:36]} 33. Bd5 {[%clk 0:00:02]}  d3 {[%clk 0:00:35]} 34. a4 {[%clk 0:00:02]}  d2 {[%clk 0:00:35]} 35. Bf3 {[%clk 0:00:02]}  Nd3 {[%clk 0:00:35]} 36. Kg2 {[%clk 0:00:00]}  Nb2 {[%clk 0:00:36]} 0-1


[Site "https://www.chess.com"]